[Event "Paul Keres Memorial Festival 2022"]
[Site "Pärnu, Estonia Resort Hotel & Spa"]
[Date "2022.07.19"]
[Round "2.7"]
[White "Medar, Marti"]
[Black "Sepandi, Jaak"]
[Result "1-0"]
[TimeControl "60 min for 30 moves + 30 min until game end, from first move every move 30 sec time increment"]
[WhiteFideId "4501870"]
[BlackFideId "4504348"]
[WhiteElo "2066"]
[BlackElo "1507"]

1. c4 {[%clk 01:00:56]} {[%emt 00:00:02]} e6 {[%clk 01:00:50]} {[%emt
00:00:11]} 2. Nc3 {[%clk 01:01:09]} {[%emt 00:00:17]} d5 {[%clk 01:00:14]}
{[%emt 00:01:06]} 3. d4 {[%clk 01:01:06]} {[%emt 00:00:33]} Nf6 {[%clk
00:59:51]} {[%emt 00:00:53]} 4. cxd5 {[%clk 01:01:26]} {[%emt 00:00:10]} exd5
{[%clk 01:00:01]} {[%emt 00:00:20]} 5. Bg5 {[%clk 01:01:49]} {[%emt 00:00:06]}
Be7 {[%clk 01:00:04]} {[%emt 00:00:28]} 6. e3 {[%clk 01:02:12]} {[%emt
00:00:07]} h6 {[%clk 00:58:01]} {[%emt 00:02:33]} 7. Bh4 {[%clk 01:02:31]}
{[%emt 00:00:11]} Bf5 {[%clk 00:56:29]} {[%emt 00:02:02]} 8. Bxf6 {[%clk
00:56:00]} {[%emt 00:07:01]} gxf6 {[%clk 00:55:35]} {[%emt 00:01:24]} 9. Qb3
{[%clk 00:56:16]} {[%emt 00:00:13]} b6 {[%clk 00:53:13]} {[%emt 00:02:52]} 10.
Qxd5 {[%clk 00:55:35]} {[%emt 00:01:11]} Qxd5 {[%clk 00:52:59]} {[%emt
00:00:45]} 11. Nxd5 {[%clk 00:56:03]} {[%emt 00:00:02]} Kd8 {[%clk 00:51:40]}
{[%emt 00:01:49]} 12. Nxe7 {[%clk 00:55:46]} {[%emt 00:00:47]} Kxe7 {[%clk
00:51:58]} {[%emt 00:00:11]} 13. Rc1 {[%clk 00:55:41]} {[%emt 00:00:34]} c6
{[%clk 00:51:07]} {[%emt 00:01:22]} 14. Ne2 {[%clk 00:55:53]} {[%emt 00:00:17]}
Kd6 {[%clk 00:50:29]} {[%emt 00:01:09]} 15. Ng3 {[%clk 00:54:15]} {[%emt
00:02:07]} Bg6 {[%clk 00:50:07]} {[%emt 00:00:53]} 16. f4 {[%clk 00:53:49]}
{[%emt 00:00:55]} f5 {[%clk 00:49:40]} {[%emt 00:00:57]} 17. Bd3 {[%clk
00:54:03]} {[%emt 00:00:16]} Re8 {[%clk 00:45:35]} {[%emt 00:04:36]} 18. Kf2
{[%clk 00:54:23]} {[%emt 00:00:10]} Nd7 {[%clk 00:44:20]} {[%emt 00:01:45]} 19.
Bxf5 {[%clk 00:53:31]} {[%emt 00:01:21]} Nf6 {[%clk 00:44:29]} {[%emt
00:00:21]} 20. Bxg6 {[%clk 00:53:27]} {[%emt 00:00:34]} fxg6 {[%clk 00:44:27]}
{[%emt 00:00:32]} 21. Kf3 {[%clk 00:53:36]} {[%emt 00:00:21]} Kd5 {[%clk
00:42:43]} {[%emt 00:02:14]} 22. Rhe1 {[%clk 00:53:35]} {[%emt 00:00:31]} Ne4
{[%clk 00:41:26]} {[%emt 00:01:46]} 23. Nxe4 {[%clk 00:53:46]} {[%emt
00:00:20]} Rxe4 {[%clk 00:41:45]} {[%emt 00:00:11]} 24. Rxc6 {[%clk 00:54:06]}
{[%emt 00:00:10]} Rxe3+ {[%clk 00:40:50]} {[%emt 00:01:26]} 25. Rxe3 {[%clk
00:54:20]} {[%emt 00:00:15]} Kxc6 {[%clk 00:41:03]} {[%emt 00:00:17]} 26. Re6+
{[%clk 00:54:17]} {[%emt 00:00:32]} Kd5 {[%clk 00:40:55]} {[%emt 00:00:40]} 27.
Rxg6 {[%clk 00:54:23]} {[%emt 00:00:24]} Kxd4 {[%clk 00:40:41]} {[%emt
00:00:44]} 28. Rd6+ {[%clk 00:54:36]} {[%emt 00:00:16]} Kc5 {[%clk 00:39:43]}
{[%emt 00:01:28]} 29. Rd2 {[%clk 00:54:57]} {[%emt 00:00:09]} Rf8 {[%clk
00:38:30]} {[%emt 00:01:44]} 30. g4 {[%clk 01:25:21]} {[%emt 00:00:06]} Re8
{[%clk 01:08:16]} {[%emt 00:00:43]} 31. f5 {[%clk 01:25:01]} {[%emt 00:00:49]}
a5 {[%clk 01:06:34]} {[%emt 00:02:13]} 32. h4 {[%clk 01:25:08]} {[%emt
00:00:23]} b5 {[%clk 01:06:12]} {[%emt 00:00:53]} 33. f6 {[%clk 01:25:13]}
{[%emt 00:00:24]} a4 {[%clk 01:06:08]} {[%emt 00:00:35]} 34. g5 {[%clk
01:25:32]} {[%emt 00:00:10]} hxg5 {[%clk 01:04:15]} {[%emt 00:02:22]} 35. hxg5
{[%clk 01:26:00]} {[%emt 00:00:03]} Kc4 {[%clk 01:03:35]} {[%emt 00:01:10]} 36.
f7 {[%clk 01:26:19]} {[%emt 00:00:10]} 1-0

[Event "Paul Keres Memorial Festival 2022"]
[Site "Pärnu, Estonia Resort Hotel & Spa"]
[Date "2022.07.19"]
[Round "2.8"]
[White "Dzjuba, Jegor"]
[Black "Andrijashkin, Deniss"]
[Result "0-1"]
[TimeControl "60 min for 30 moves + 30 min until game end, from first move every move 30 sec time increment"]
[WhiteFideId "4516710"]
[BlackFideId "4504631"]
[WhiteElo "1495"]
[BlackElo "2006"]

1. d4 {[%clk 01:00:03]} {[%emt 00:00:56]} Nf6 {[%clk 01:00:01]} {[%emt
00:01:00]} 2. Nf3 {[%clk 01:00:25]} {[%emt 00:00:08]} g6 {[%clk 01:00:08]}
{[%emt 00:00:23]} 3. Bf4 {[%clk 01:00:04]} {[%emt 00:00:50]} Bg7 {[%clk
00:59:44]} {[%emt 00:00:53]} 4. e3 {[%clk 00:59:44]} {[%emt 00:00:50]} d6
{[%clk 00:58:04]} {[%emt 00:02:10]} 5. c3 {[%clk 00:57:11]} {[%emt 00:03:03]}
Nh5 {[%clk 00:55:34]} {[%emt 00:03:00]} 6. Nbd2 {[%clk 00:57:05]} {[%emt
00:00:36]} Nxf4 {[%clk 00:49:19]} {[%emt 00:06:46]} 7. exf4 {[%clk 00:57:25]}
{[%emt 00:00:10]} O-O {[%clk 00:49:46]} {[%emt 00:00:03]} 8. g3 {[%clk
00:56:30]} {[%emt 00:01:24]} b6 {[%clk 00:36:00]} {[%emt 00:14:17]} 9. Bg2
{[%clk 00:53:32]} {[%emt 00:03:27]} Bb7 {[%clk 00:36:13]} {[%emt 00:00:15]} 10.
O-O {[%clk 00:53:29]} {[%emt 00:00:35]} c5 {[%clk 00:36:26]} {[%emt 00:00:18]}
11. dxc5 {[%clk 00:50:13]} {[%emt 00:03:45]} bxc5 {[%clk 00:36:08]} {[%emt
00:00:47]} 12. Qb3 {[%clk 00:48:11]} {[%emt 00:02:32]} Qc7 {[%clk 00:35:06]}
{[%emt 00:01:29]} 13. Rfe1 {[%clk 00:47:48]} {[%emt 00:00:56]} Nc6 {[%clk
00:34:40]} {[%emt 00:00:56]} 14. Rad1 {[%clk 00:45:36]} {[%emt 00:02:42]} Rab8
{[%clk 00:32:14]} {[%emt 00:02:56]} 15. Qc2 {[%clk 00:45:16]} {[%emt 00:00:51]}
Ba6 {[%clk 00:27:56]} {[%emt 00:04:46]} 16. Ne4 {[%clk 00:36:36]} {[%emt
00:09:11]} Qb6 {[%clk 00:25:14]} {[%emt 00:03:11]} 17. b3 {[%clk 00:34:46]}
{[%emt 00:02:22]} Rfe8 {[%clk 00:23:49]} {[%emt 00:01:53]} 18. h4 {[%clk
00:29:47]} {[%emt 00:05:31]} Rbd8 {[%clk 00:20:37]} {[%emt 00:03:41]} 19. h5
{[%clk 00:25:03]} {[%emt 00:05:14]} Bc8 {[%clk 00:12:03]} {[%emt 00:09:06]} 20.
hxg6 {[%clk 00:23:28]} {[%emt 00:02:05]} hxg6 {[%clk 00:12:25]} {[%emt
00:00:09]} 21. Neg5 {[%clk 00:20:47]} {[%emt 00:03:09]} Bf5 {[%clk 00:11:02]}
{[%emt 00:01:54]} 22. Qc1 {[%clk 00:18:30]} {[%emt 00:02:47]} Bg4 {[%clk
00:09:20]} {[%emt 00:02:11]} 23. Rd3 {[%clk 00:09:15]} {[%emt 00:09:46]} Qa6
{[%clk 00:09:04]} {[%emt 00:00:44]} 24. Rde3 {[%clk 00:09:02]} {[%emt
00:00:46]} d5 {[%clk 00:07:37]} {[%emt 00:01:57]} 25. Ne5 {[%clk 00:07:40]}
{[%emt 00:01:53]} Nxe5 {[%clk 00:07:41]} {[%emt 00:00:26]} 26. fxe5 {[%clk
00:07:56]} {[%emt 00:00:13]} Bh6 {[%clk 00:02:38]} {[%emt 00:05:31]} 27. f4
{[%clk 00:05:28]} {[%emt 00:03:00]} Bxg5 {[%clk 00:02:55]} {[%emt 00:00:12]} 28.
fxg5 {[%clk 00:05:54]} {[%emt 00:00:05]} Qxa2 {[%clk 00:03:07]} {[%emt
00:00:17]} 29. c4 {[%clk 00:05:39]} {[%emt 00:00:45]} d4 {[%clk 00:00:51]}
{[%emt 00:02:45]} 30. Rd3 {[%clk 00:33:43]} {[%emt 00:02:26]} Bf5 {[%clk
00:30:33]} {[%emt 00:00:49]} 31. Be4 {[%clk 00:33:25]} {[%emt 00:00:48]} e6
{[%clk 00:24:23]} {[%emt 00:06:40]} 32. Qf4 {[%clk 00:30:17]} {[%emt 00:03:38]}
Bxe4 {[%clk 00:02:15]} {[%emt 00:22:38]} 33. Qxe4 {[%clk 00:29:48]} {[%emt
00:00:58]} Qc2 {[%clk 00:01:57]} {[%emt 00:00:46]} 34. Rf1 {[%clk 00:27:32]}
{[%emt 00:02:49]} Rb8 {[%clk 00:01:23]} {[%emt 00:00:59]} 35. Rxf7 {[%clk
00:25:26]} {[%emt 00:02:41]} Qxd3 {[%clk 00:00:36]} {[%emt 00:01:17]} 36. Qxd3
{[%clk 00:25:00]} {[%emt 00:00:56]} Kxf7 {[%clk 00:01:03]} {[%emt 00:00:03]} 37.
Qf3+ {[%clk 00:20:32]} {[%emt 00:04:57]} Ke7 {[%clk 00:01:24]} {[%emt
00:00:09]} 38. Qc6 {[%clk 00:18:14]} {[%emt 00:02:49]} Rbd8 {[%clk 00:00:37]}
{[%emt 00:01:17]} 39. Qxc5+ {[%clk 00:17:22]} {[%emt 00:01:22]} Kf7 {[%clk
00:01:03]} {[%emt 00:00:03]} 40. Qxa7+ {[%clk 00:15:16]} {[%emt 00:02:37]} Kg8
{[%clk 00:01:14]} {[%emt 00:00:18]} 41. Kf1 {[%clk 00:12:45]} {[%emt 00:03:02]}
d3 {[%clk 00:01:21]} {[%emt 00:00:23]} 42. Ke1 {[%clk 00:12:40]} {[%emt
00:00:34]} d2+ {[%clk 00:01:41]} {[%emt 00:00:10]} 43. Kd1 {[%clk 00:13:05]}
{[%emt 00:00:05]} Rf8 {[%clk 00:01:56]} {[%emt 00:00:13]} 44. Qg1 {[%clk
00:12:58]} {[%emt 00:00:39]} Rf3 {[%clk 00:01:52]} {[%emt 00:00:30]} 45. b4
{[%clk 00:09:54]} {[%emt 00:03:39]} Rc3 {[%clk 00:01:55]} {[%emt 00:00:24]} 46.
Ke2 {[%clk 00:09:34]} {[%emt 00:00:52]} d1=Q+ {[%clk 00:02:13]} {[%emt
00:00:11]} 47. Qxd1 {[%clk 00:10:02]} {[%emt 00:00:02]} Rxd1 {[%clk 00:02:37]}
{[%emt 00:00:06]} 48. Kxd1 {[%clk 00:10:24]} {[%emt 00:00:09]} Rxc4 {[%clk
00:03:04]} {[%emt 00:00:02]} 0-1

[Event "Paul Keres Memorial Festival 2022"]
[Site "Pärnu, Estonia Resort Hotel & Spa"]
[Date "2022.07.19"]
[Round "3.1"]
[White "Kantans, Toms"]
[Black "Medar, Marti"]
[Result "1-0"]
[TimeControl "60 min for 30 moves + 30 min until game end, from first move every move 30 sec time increment"]
[WhiteTitle "GM"]
[WhiteFideId "11602945"]
[BlackFideId "4501870"]
[WhiteElo "2486"]
[BlackElo "2066"]

1. e4 {[%clk 01:00:36]} {[%emt 00:00:23]} d6 {[%clk 01:00:50]} {[%emt
00:00:11]} 2. d4 {[%clk 01:00:59]} {[%emt 00:00:06]} Nf6 {[%clk 01:01:15]}
{[%emt 00:00:05]} 3. Nc3 {[%clk 01:01:23]} {[%emt 00:00:07]} Nbd7 {[%clk
01:01:37]} {[%emt 00:00:08]} 4. Nf3 {[%clk 01:00:39]} {[%emt 00:01:13]} e5
{[%clk 01:01:54]} {[%emt 00:00:12]} 5. Bc4 {[%clk 01:01:03]} {[%emt 00:00:06]}
Be7 {[%clk 01:02:15]} {[%emt 00:00:10]} 6. O-O {[%clk 01:01:27]} {[%emt
00:00:07]} c6 {[%clk 01:01:40]} {[%emt 00:01:04]} 7. a4 {[%clk 00:59:59]}
{[%emt 00:01:58]} Qc7 {[%clk 01:00:31]} {[%emt 00:01:39]} 8. Re1 {[%clk
00:59:49]} {[%emt 00:00:41]} O-O {[%clk 00:56:16]} {[%emt 00:04:45]} 9. Ba2
{[%clk 00:59:07]} {[%emt 00:01:12]} b6 {[%clk 00:45:06]} {[%emt 00:11:39]} 10.
h3 {[%clk 00:58:23]} {[%emt 00:01:14]} a6 {[%clk 00:43:39]} {[%emt 00:01:58]}
11. Be3 {[%clk 00:56:50]} {[%emt 00:02:02]} Rb8 {[%clk 00:42:32]} {[%emt
00:01:37]} 12. Qd3 {[%clk 00:51:54]} {[%emt 00:05:26]} b5 {[%clk 00:38:24]}
{[%emt 00:04:38]} 13. axb5 {[%clk 00:50:17]} {[%emt 00:02:07]} axb5 {[%clk
00:38:03]} {[%emt 00:00:50]} 14. b4 {[%clk 00:49:36]} {[%emt 00:01:11]} Nb6
{[%clk 00:32:17]} {[%emt 00:06:16]} 15. Bb3 {[%clk 00:46:19]} {[%emt 00:03:47]}
Be6 {[%clk 00:26:11]} {[%emt 00:06:36]} 16. Bxe6 {[%clk 00:43:13]} {[%emt
00:03:37]} fxe6 {[%clk 00:26:38]} {[%emt 00:00:02]} 17. Ng5 {[%clk 00:43:13]}
{[%emt 00:00:30]} Qc8 {[%clk 00:26:00]} {[%emt 00:01:07]} 18. Ra7 {[%clk
00:42:17]} {[%emt 00:01:27]} Re8 {[%clk 00:22:02]} {[%emt 00:04:28]} 19. d5
{[%clk 00:33:57]} {[%emt 00:08:51]} exd5 {[%clk 00:15:18]} {[%emt 00:07:13]} 20.
Bxb6 {[%clk 00:33:54]} {[%emt 00:00:34]} Rxb6 {[%clk 00:15:12]} {[%emt
00:00:35]} 21. exd5 {[%clk 00:34:04]} {[%emt 00:00:20]} Rb7 {[%clk 00:10:24]}
{[%emt 00:05:18]} 22. Ra6 {[%clk 00:29:44]} {[%emt 00:04:50]} c5 {[%clk
00:03:52]} {[%emt 00:07:02]} 23. bxc5 {[%clk 00:26:34]} {[%emt 00:03:40]} Qxc5
{[%clk 00:02:48]} {[%emt 00:01:33]} 24. Rc6 {[%clk 00:26:57]} {[%emt 00:00:07]}
Qb4 {[%clk 00:02:53]} {[%emt 00:00:26]} 25. Qf5 {[%clk 00:24:15]} {[%emt
00:03:11]} Bf8 {[%clk 00:02:08]} {[%emt 00:01:15]} 26. Rc8 {[%clk 00:20:21]}
{[%emt 00:04:25]} Rxc8 {[%clk 00:01:29]} {[%emt 00:01:08]} 27. Qe6+ {[%clk
00:20:42]} {[%emt 00:00:09]} 1-0

[Event "Paul Keres Memorial Festival 2022"]
[Site "Pärnu, Estonia Resort Hotel & Spa"]
[Date "2022.07.19"]
[Round "3.2"]
[White "Andrijashkin, Deniss"]
[Black "Sulskis, Sarunas"]
[Result "1/2-1/2"]
[TimeControl "60 min for 30 moves + 30 min until game end, from first move every move 30 sec time increment"]
[BlackTitle "GM"]
[WhiteFideId "4504631"]
[BlackFideId "12800112"]
[WhiteElo "2006"]
[BlackElo "2481"]

1. Nf3 {[%clk 00:59:19]} {[%emt 00:01:35]} d5 {[%clk 01:00:01]} {[%emt
00:01:05]} 2. g3 {[%clk 00:59:39]} {[%emt 00:00:10]} Nd7 {[%clk 00:56:24]}
{[%emt 00:04:06]} 3. Bg2 {[%clk 00:49:41]} {[%emt 00:10:28]} e5 {[%clk
00:56:25]} {[%emt 00:00:29]} 4. d3 {[%clk 00:49:51]} {[%emt 00:00:20]} Ngf6
{[%clk 00:54:56]} {[%emt 00:01:59]} 5. O-O {[%clk 00:49:41]} {[%emt 00:00:41]}
c6 {[%clk 00:53:07]} {[%emt 00:02:19]} 6. e4 {[%clk 00:44:32]} {[%emt
00:05:39]} dxe4 {[%clk 00:51:45]} {[%emt 00:01:52]} 7. dxe4 {[%clk 00:44:57]}
{[%emt 00:00:04]} Bc5 {[%clk 00:51:57]} {[%emt 00:00:18]} 8. Nbd2 {[%clk
00:44:42]} {[%emt 00:00:44]} O-O {[%clk 00:51:18]} {[%emt 00:01:11]} 9. Nh4
{[%clk 00:38:18]} {[%emt 00:06:53]} Nb6 {[%clk 00:42:21]} {[%emt 00:09:27]} 10.
h3 {[%clk 00:37:37]} {[%emt 00:01:10]} a5 {[%clk 00:40:21]} {[%emt 00:02:31]}
11. a4 {[%clk 00:29:50]} {[%emt 00:08:16]} Be6 {[%clk 00:39:17]} {[%emt
00:01:34]} 12. Qf3 {[%clk 00:29:50]} {[%emt 00:00:26]} g6 {[%clk 00:34:48]}
{[%emt 00:05:03]} 13. Nb3 {[%clk 00:28:45]} {[%emt 00:01:33]} Be7 {[%clk
00:34:27]} {[%emt 00:00:53]} 14. Bh6 {[%clk 00:25:11]} {[%emt 00:04:03]} Re8
{[%clk 00:33:04]} {[%emt 00:01:54]} 15. Rfd1 {[%clk 00:24:03]} {[%emt
00:01:37]} Qc7 {[%clk 00:23:47]} {[%emt 00:09:48]} 16. Nc5 {[%clk 00:15:22]}
{[%emt 00:09:12]} Bxc5 {[%clk 00:17:41]} {[%emt 00:06:37]} 17. Qxf6 {[%clk
00:15:44]} {[%emt 00:00:07]} Bf8 {[%clk 00:18:07]} {[%emt 00:00:04]} 18. Bxf8
{[%clk 00:07:48]} {[%emt 00:08:27]} Rxf8 {[%clk 00:18:21]} {[%emt 00:00:16]} 19.
Nf5 {[%clk 00:08:01]} {[%emt 00:00:16]} Bxf5 {[%clk 00:15:31]} {[%emt
00:03:20]} 20. exf5 {[%clk 00:08:28]} {[%emt 00:00:04]} Rae8 {[%clk 00:15:43]}
{[%emt 00:00:17]} 21. Qh4 {[%clk 00:07:19]} {[%emt 00:01:36]} f6 {[%clk
00:11:22]} {[%emt 00:04:54]} 22. fxg6 {[%clk 00:07:21]} {[%emt 00:00:29]} hxg6
{[%clk 00:11:45]} {[%emt 00:00:07]} 23. Qh6 {[%clk 00:07:45]} {[%emt 00:00:06]}
Qg7 {[%clk 00:11:55]} {[%emt 00:00:19]} 24. Qe3 {[%clk 00:07:27]} {[%emt
00:00:46]} Qc7 {[%clk 00:11:26]} {[%emt 00:01:01]} 25. Qh6 {[%clk 00:03:56]}
{[%emt 00:04:01]} Qg7 {[%clk 00:10:11]} {[%emt 00:01:45]} 26. Qe3 {[%clk
00:04:23]} {[%emt 00:00:04]} Qc7 {[%clk 00:10:33]} {[%emt 00:00:07]} 27. Qh6
{[%clk 00:04:46]} {[%emt 00:00:07]} 1/2-1/2

[Event "Paul Keres Memorial Festival 2022"]
[Site "Pärnu, Estonia Resort Hotel & Spa"]
[Date "2022.07.19"]
[Round "3.3"]
[White "Maiorov, Nikita"]
[Black "Raag, Ardi"]
[Result "1-0"]
[TimeControl "60 min for 30 moves + 30 min until game end, from first move every move 30 sec time increment"]
[WhiteTitle "GM"]
[WhiteFideId "13501720"]
[BlackFideId "4509269"]
[WhiteElo "2474"]
[BlackElo "1971"]

1. d4 {[%clk 01:00:52]} {[%emt 00:00:07]} d5 {[%clk 01:00:55]} {[%emt
00:00:05]} 2. c4 {[%clk 01:01:18]} {[%emt 00:00:05]} e6 {[%clk 01:01:19]}
{[%emt 00:00:06]} 3. Nc3 {[%clk 01:01:45]} {[%emt 00:00:04]} Nf6 {[%clk
01:01:44]} {[%emt 00:00:05]} 4. cxd5 {[%clk 01:01:46]} {[%emt 00:00:28]} exd5
{[%clk 01:02:07]} {[%emt 00:00:07]} 5. Bg5 {[%clk 01:02:13]} {[%emt 00:00:03]}
Be7 {[%clk 01:02:13]} {[%emt 00:00:24]} 6. e3 {[%clk 01:02:37]} {[%emt
00:00:06]} h6 {[%clk 01:02:29]} {[%emt 00:00:14]} 7. Bh4 {[%clk 01:02:50]}
{[%emt 00:00:18]} O-O {[%clk 01:02:44]} {[%emt 00:00:14]} 8. Bd3 {[%clk
01:03:18]} {[%emt 00:00:03]} c5 {[%clk 01:01:53]} {[%emt 00:01:21]} 9. dxc5
{[%clk 01:02:13]} {[%emt 00:01:36]} Nbd7 {[%clk 01:02:04]} {[%emt 00:00:18]} 10.
Nge2 {[%clk 01:02:02]} {[%emt 00:00:41]} Nxc5 {[%clk 01:01:46]} {[%emt
00:00:48]} 11. Bc2 {[%clk 01:02:08]} {[%emt 00:00:24]} b6 {[%clk 00:51:39]}
{[%emt 00:10:38]} 12. O-O {[%clk 01:01:57]} {[%emt 00:00:41]} Bb7 {[%clk
00:51:59]} {[%emt 00:00:10]} 13. f3 {[%clk 00:57:43]} {[%emt 00:04:43]} Qd7
{[%clk 00:43:36]} {[%emt 00:08:54]} 14. Nd4 {[%clk 00:41:14]} {[%emt 00:16:59]}
g6 {[%clk 00:31:52]} {[%emt 00:12:15]} 15. Bf2 {[%clk 00:35:48]} {[%emt
00:05:55]} Rad8 {[%clk 00:26:15]} {[%emt 00:06:06]} 16. Rc1 {[%clk 00:35:59]}
{[%emt 00:00:21]} Kg7 {[%clk 00:25:28]} {[%emt 00:01:17]} 17. b4 {[%clk
00:32:57]} {[%emt 00:03:32]} Ne6 {[%clk 00:25:05]} {[%emt 00:00:52]} 18. Ba4
{[%clk 00:32:42]} {[%emt 00:00:45]} b5 {[%clk 00:19:55]} {[%emt 00:05:41]} 19.
Bxb5 {[%clk 00:28:51]} {[%emt 00:04:21]} Qd6 {[%clk 00:20:08]} {[%emt
00:00:17]} 20. a3 {[%clk 00:29:15]} {[%emt 00:00:06]} Nxd4 {[%clk 00:14:56]}
{[%emt 00:05:42]} 21. Qxd4 {[%clk 00:28:51]} {[%emt 00:00:54]} Ba6 {[%clk
00:14:56]} {[%emt 00:00:30]} 22. Qxa7 {[%clk 00:27:04]} {[%emt 00:02:17]} Ra8
{[%clk 00:15:10]} {[%emt 00:00:16]} 23. Qd4 {[%clk 00:27:30]} {[%emt 00:00:04]}
Bxb5 {[%clk 00:13:37]} {[%emt 00:02:03]} 24. Nxb5 {[%clk 00:27:56]} {[%emt
00:00:04]} Qd7 {[%clk 00:14:02]} {[%emt 00:00:06]} 25. Qd3 {[%clk 00:28:17]}
{[%emt 00:00:08]} Rfb8 {[%clk 00:14:17]} {[%emt 00:00:16]} 26. Nd4 {[%clk
00:28:37]} {[%emt 00:00:10]} Qa4 {[%clk 00:14:21]} {[%emt 00:00:25]} 27. Nc6
{[%clk 00:24:59]} {[%emt 00:04:08]} Rb7 {[%clk 00:14:36]} {[%emt 00:00:16]} 28.
Rc3 {[%clk 00:22:42]} {[%emt 00:02:47]} 1-0

[Event "Paul Keres Memorial Festival 2022"]
[Site "Pärnu, Estonia Resort Hotel & Spa"]
[Date "2022.07.19"]
[Round "3.4"]
[White "Olde, Grete"]
[Black "Smirnov, Artem"]
[Result "0-1"]
[TimeControl "60 min for 30 moves + 30 min until game end, from first move every move 30 sec time increment"]
[WhiteTitle "WCM"]
[BlackTitle "IM"]
[WhiteFideId "4503104"]
[BlackFideId "4143256"]
[WhiteElo "1904"]
[BlackElo "2419"]

1. e4 {[%clk 01:00:56]} {[%emt 00:00:03]} c5 {[%clk 01:00:54]} {[%emt
00:00:06]} 2. Nc3 {[%clk 01:01:19]} {[%emt 00:00:08]} Nc6 {[%clk 01:01:18]}
{[%emt 00:00:07]} 3. g3 {[%clk 01:01:29]} {[%emt 00:00:20]} g6 {[%clk
01:01:41]} {[%emt 00:00:07]} 4. Bg2 {[%clk 01:01:46]} {[%emt 00:00:13]} Bg7
{[%clk 01:02:03]} {[%emt 00:00:08]} 5. d3 {[%clk 01:01:53]} {[%emt 00:00:23]}
d6 {[%clk 01:02:26]} {[%emt 00:00:07]} 6. f4 {[%clk 01:01:59]} {[%emt
00:00:23]} e6 {[%clk 01:02:50]} {[%emt 00:00:06]} 7. Nf3 {[%clk 01:02:08]}
{[%emt 00:00:21]} Nge7 {[%clk 01:03:13]} {[%emt 00:00:07]} 8. O-O {[%clk
01:02:04]} {[%emt 00:00:34]} O-O {[%clk 01:03:37]} {[%emt 00:00:06]} 9. Be3
{[%clk 01:02:21]} {[%emt 00:00:13]} b6 {[%clk 01:03:59]} {[%emt 00:00:09]} 10.
d4 {[%clk 00:59:48]} {[%emt 00:03:03]} d5 {[%clk 01:03:49]} {[%emt 00:00:40]}
11. exd5 {[%clk 00:46:12]} {[%emt 00:14:06]} Nf5 {[%clk 01:03:31]} {[%emt
00:00:48]} 12. Bf2 {[%clk 00:45:13]} {[%emt 00:01:28]} Ncxd4 {[%clk 01:03:22]}
{[%emt 00:00:38]} 13. dxe6 {[%clk 00:41:44]} {[%emt 00:03:59]} Bxe6 {[%clk
01:01:43]} {[%emt 00:02:09]} 14. g4 {[%clk 00:37:48]} {[%emt 00:04:26]} Ne7
{[%clk 00:53:04]} {[%emt 00:09:09]} 15. Ng5 {[%clk 00:27:18]} {[%emt 00:11:00]}
Bc4 {[%clk 00:46:59]} {[%emt 00:06:35]} 16. Re1 {[%clk 00:27:23]} {[%emt
00:00:25]} h6 {[%clk 00:39:53]} {[%emt 00:07:36]} 17. Nh3 {[%clk 00:22:47]}
{[%emt 00:05:06]} Nec6 {[%clk 00:31:22]} {[%emt 00:09:01]} 18. f5 {[%clk
00:17:54]} {[%emt 00:05:23]} Re8 {[%clk 00:16:59]} {[%emt 00:14:53]} 19. Rxe8+
{[%clk 00:13:25]} {[%emt 00:04:59]} Qxe8 {[%clk 00:17:24]} {[%emt 00:00:06]} 20.
Ne4 {[%clk 00:13:32]} {[%emt 00:00:23]} Be2 {[%clk 00:13:47]} {[%emt 00:04:07]}
21. Qd2 {[%clk 00:09:51]} {[%emt 00:04:11]} Nf3+ {[%clk 00:09:00]} {[%emt
00:05:16]} 22. Bxf3 {[%clk 00:10:12]} {[%emt 00:00:09]} Bxf3 {[%clk 00:09:26]}
{[%emt 00:00:04]} 23. Nd6 {[%clk 00:09:28]} {[%emt 00:01:15]} Qd7 {[%clk
00:06:18]} {[%emt 00:03:38]} 24. Qf4 {[%clk 00:05:08]} {[%emt 00:04:49]} Ne5
{[%clk 00:05:34]} {[%emt 00:01:14]} 25. Nc4 {[%clk 00:03:12]} {[%emt 00:02:27]}
Qd5 {[%clk 00:01:23]} {[%emt 00:04:42]} 26. Nxe5 {[%clk 00:01:42]} {[%emt
00:02:00]} Bxe5 {[%clk 00:01:47]} {[%emt 00:00:05]} 27. Qxh6 {[%clk 00:01:32]}
{[%emt 00:00:40]} Bh1 {[%clk 00:02:03]} {[%emt 00:00:14]} 28. Kf1 {[%clk
00:01:04]} {[%emt 00:00:58]} Qg2+ {[%clk 00:01:47]} {[%emt 00:00:46]} 29. Ke1
{[%clk 00:01:14]} {[%emt 00:00:20]} Re8 {[%clk 00:01:25]} {[%emt 00:00:53]} 30.
Be3 {[%clk 00:30:37]} {[%emt 00:01:07]} Bd4 {[%clk 00:31:14]} {[%emt 00:00:40]}
0-1